bitfinex/quotes_SOLUSD_20240708
["timestamp","ask_amount","ask_price","bid_price","bid_amount"]
[1720429259096,20.17,140.41,140.31,22.2926]
[1720429259595,42.22,140.4,140.31,22.2926]
[1720429259920,120.17,140.39,140.31,22.2926]
[1720429260111,45.0,140.38,140.31,22.2926]
[1720429260312,20.17,140.37,140.31,22.2926]
[1720429260614,42.22,140.4,140.31,22.2926]
[1720429261326,82.91040773,140.44,140.31,22.2926]
[1720429261512,45.0,140.43,140.31,22.2926]
[1720429261897,147.11876249,140.44,140.31,22.2926]
[1720429262098,47.11876249,140.44,140.31,22.2926]
[1720429262326,42.22,140.44,140.31,22.2926]
[1720429262521,100.0,140.47,140.31,22.2926]
[1720429262725,77.8731528,140.49,140.31,22.2926]
[1720429262726,142.22,140.49,140.31,22.2926]
[1720429263109,146.982037,140.49,140.31,22.2926]
[1720429263310,100.0,140.45,140.31,22.2926]
[1720429263622,46.982037,140.49,140.31,22.2926]
[1720429263823,4.762037,140.49,140.32,22.1499]
[1720429264127,100.0,140.5,140.32,22.1499]
[1720429264420,42.22,140.51,140.32,22.1499]
[1720429265219,42.22,140.51,140.33,22.0279]
[1720429265525,100.0,140.5,140.33,21.8579]
[1720429265934,42.22,140.51,140.33,21.8579]
[1720429266234,4.75969306,140.54,140.35,15.0401]
[1720429266403,100.0,140.51,140.35,15.0401]
[1720429267017,42.22,140.47,140.35,15.0401]
[1720429267223,100.0,140.45,140.35,15.0401]
[1720429267419,35.15752934,140.46,140.35,15.0401]
[1720429267627,100.0,140.44,140.35,15.0401]
[1720429267804,100.0,140.42,140.35,15.0401]
[1720429268013,20.0,140.41,140.35,15.0401]
[1720429268213,20.17,140.41,140.35,15.0401]
[1720429269009,0.17,140.41,140.35,15.0401]
[1720429269645,20.0,140.42,140.35,15.0401]
[1720429269934,42.22,140.49,140.35,15.0401]
[1720429270346,100.0,140.53,140.35,15.0401]
[1720429270834,142.22,140.56,140.37,16.1752]
[1720429271023,142.22,140.56,140.38,6.088]
[1720429271436,147.12625873,140.56,140.38,6.088]
[1720429271886,100.0,140.53,140.38,6.088]
[1720429272010,142.22,140.52,140.38,6.088]
[1720429272219,20.0,140.51,140.38,6.088]
[1720429272710,42.22,140.52,140.38,6.088]
[1720429272910,100.0,140.55,140.39,16.3247]
[1720429273217,100.0,140.55,140.4,6.6359]
[1720429274024,47.12625873,140.56,140.4,6.6359]
[1720429274230,100.0,140.53,140.4,6.6359]
[1720429274536,135.16130703,140.53,140.4,6.6359]
[1720429274741,15.0,140.55,140.4,6.6359]
[1720429274742,100.0,140.51,140.4,6.6359]
[1720429275047,100.0,140.48,140.4,6.6359]
[1720429275345,120.17,140.47,140.4,6.6359]
[1720429275514,45.0,140.46,140.4,6.6359]
[1720429275717,20.17,140.45,140.4,6.6359]
[1720429276348,0.17,140.45,140.4,6.6359]
[1720429276653,20.0,140.44,140.4,6.6359]
[1720429276943,0.17,140.43,140.4,6.6359]
[1720429279157,20.0,140.48,140.4,6.6359]
[1720429279384,142.22,140.49,140.4,6.6359]
[1720429279385,42.22,140.49,140.4,6.6359]
[1720429279561,100.0,140.52,140.4,6.6359]
[1720429279722,4.53546731,140.51,140.4,6.6359]
[1720429279932,40.68286692,140.52,140.4,6.6359]
[1720429280225,100.0,140.5,140.4,6.6359]
[1720429280425,100.0,140.48,140.4,6.6359]
[1720429280827,20.0,140.47,140.4,6.6359]
[1720429281024,20.0,140.48,140.4,6.6359]
[1720429281532,100.0,140.53,140.4,6.6359]
[1720429281734,4.53496468,140.52,140.4,6.6359]
[1720429282041,104.53496468,140.51,140.4,6.6359]
[1720429282235,4.53496468,140.5,140.4,6.6359]
[1720429282654,100.0,140.53,140.4,6.6359]
[1720429282829,24.53476059,140.52,140.4,6.6359]
[1720429283030,4.53476059,140.51,140.4,6.6359]
[1720429283241,4.53476059,140.5,140.4,6.6359]
[1720429283453,66.75476059,140.52,140.4,6.6359]
[1720429283651,4.53562139,140.51,140.4,6.6359]
[1720429283964,4.70562139,140.5,140.4,6.6359]
[1720429284177,49.53516427,140.49,140.4,6.6359]
[1720429284344,24.70530871,140.48,140.4,6.6359]
[1720429284545,20.17,140.48,140.4,6.6359]
[1720429285046,100.0,140.51,140.4,6.6359]
[1720429285378,100.0,140.51,140.29,47.06337784]
[1720429285379,4.90919961,140.56,140.42,6.1425]
[1720429285558,100.0,140.63,140.42,6.1425]
[1720429285559,42.22,140.59,140.42,6.1425]
[1720429285747,20.56743275,140.58,140.42,6.1425]
[1720429286252,100.0,140.58,140.42,6.1425]
[1720429286574,100.0,140.56,140.42,6.1425]
[1720429286776,142.22,140.59,140.42,6.1425]
[1720429286962,42.22,140.59,140.44,6.1866]
[1720429287158,20.56341944,140.58,140.44,6.1866]
[1720429287474,119.93920243,140.62,140.44,6.1866]
[1720429287475,15.0739,140.62,140.49,22.3479]
[1720429287646,5.01918708,140.64,140.49,22.3479]
[1720429287848,42.22,140.67,140.49,22.3479]
[1720429288149,47.1600357,140.67,140.5,6.0685]
[1720429288346,100.0,140.68,140.52,6.1192]
[1720429288658,42.22,140.7,140.45,0.17]
[1720429288659,42.22,140.7,140.54,6.1192]
[1720429288855,4.8885873,140.71,140.56,6.2161]
[1720429289079,100.0,140.76,140.58,6.2161]
[1720429289374,100.0,140.75,140.58,6.2161]
[1720429289571,42.22,140.77,140.58,6.2161]
[1720429289572,100.0,140.74,140.58,6.2161]
[1720429290068,100.0,140.75,140.59,16.4172]
[1720429290473,47.19647777,140.77,140.59,16.4172]
[1720429290474,89.41647777,140.77,140.59,16.4172]
[1720429290683,42.22,140.73,140.59,16.4172]
[1720429291565,20.0,140.72,140.59,16.4172]
[1720429292269,120.0,140.72,140.59,16.4172]
[1720429292581,20.0,140.72,140.59,16.4172]
[1720429292789,42.22,140.73,140.59,16.4172]
[1720429292969,4.97647777,140.77,140.6,6.6568]
[1720429293171,100.0,140.78,140.6,6.6568]
[1720429293481,100.0,140.76,140.6,6.6568]
[1720429293685,100.0,140.78,140.61,16.3951]
[1720429293863,100.0,140.81,140.62,6.3053]
[1720429294187,40.34793765,140.82,140.62,6.3053]
[1720429294360,100.0,140.81,140.62,6.3053]
[1720429294561,100.0,140.81,140.63,16.3951]
[1720429294776,42.22,140.84,140.65,15.9724]
[1720429295085,47.16237538,140.84,140.66,6.6129]
[1720429295457,47.16237538,140.84,140.68,6.2008]
[1720429295663,170.719948,140.91,140.7,6.2008]
[1720429295876,100.0,140.88,140.7,6.2008]
[1720429296081,47.25183237,140.91,140.7,6.2008]
[1720429296288,47.25183237,140.91,140.72,6.2008]
[1720429296468,100.0,140.92,140.72,6.2008]
[1720429296861,100.0,140.89,140.72,6.2008]
[1720429297055,42.22,140.89,140.72,6.2008]
[1720429297889,104.85760709,140.93,140.74,6.3157]
[1720429298094,42.22,140.94,140.75,16.3517]
[1720429298259,100.0,140.96,140.76,6.4857]
[1720429298572,100.0,140.96,140.71,9.54233674]
[1720429298573,100.0,140.94,140.77,22.6674]
[1720429299283,42.22,140.91,140.77,22.6674]
[1720429299466,100.0,140.97,140.77,22.6674]
[1720429299794,147.12157162,140.98,140.78,6.2606]
[1720429299970,47.12157162,140.98,140.78,6.2606]
[1720429300166,147.12157162,140.98,140.78,6.2606]
[1720429300363,108.90195026,141.01,140.78,6.2606]
[1720429300580,100.0,141.01,140.81,16.2165]
[1720429300868,0.8567655,141.08,140.86,16.1855]
[1720429301062,0.8567655,141.08,140.87,6.1436]
[1720429301594,36.26440778,141.08,140.87,6.1436]
[1720429301784,42.22,141.05,140.87,6.1436]
[1720429302098,100.0,141.02,140.87,6.1436]
[1720429302390,42.22,141.05,140.87,6.1436]
[1720429303181,5.7612979,141.08,140.87,6.1436]
[1720429303484,0.8567655,141.08,140.9,6.4475]
[1720429303682,0.8567655,141.08,140.93,6.4475]
[1720429304265,100.8567655,141.08,140.93,36.4475]
[1720429304465,0.8567655,141.08,140.93,6.4475]
[1720429304676,100.8567655,141.08,140.93,6.4475]
[1720429304889,0.8567655,141.08,140.93,6.4475]
[1720429305092,0.17,141.07,140.93,6.4475]
[1720429305874,100.0,141.06,140.93,6.4475]
[1720429306079,0.17,141.05,140.93,6.4475]
[1720429306306,100.17,141.05,140.93,6.4475]
[1720429306498,20.0,141.04,140.93,6.4475]
[1720429306717,0.17,141.03,140.93,6.4475]
[1720429307017,65.0,141.04,140.93,6.4475]
[1720429307179,0.17,141.03,140.93,6.4475]
[1720429307697,108.90195026,141.07,140.93,6.4475]
[1720429307886,0.8567655,141.08,140.93,6.4475]
[1720429308500,0.8567655,141.08,140.94,15.3182]
[1720429309024,0.8567655,141.08,140.95,6.41]
[1720429309682,100.0,141.13,140.96,21.7282]
[1720429310180,100.0,141.13,140.97,6.529]
[1720429311088,78.0348473,141.15,140.97,6.529]
[1720429311300,100.0,141.13,140.97,6.529]
[1720429311500,20.0,141.12,140.97,6.529]
[1720429311884,100.0,141.13,140.97,6.529]
[1720429312086,100.0,141.13,140.98,15.1837]
[1720429312287,100.0,141.13,140.99,6.6527]
[1720429312605,100.0,141.13,140.92,9.54233674]
[1720429312606,42.22,141.19,141.03,15.1837]
[1720429312996,100.0,141.2,141.04,6.5652]
[1720429314105,42.22,141.18,141.05,16.4984]
[1720429314478,77.53170149,141.18,141.05,16.4984]
[1720429314881,42.22,141.18,141.05,16.4984]
[1720429315286,5.90434835,141.21,141.05,16.4984]
[1720429315621,42.22,141.2,141.05,16.4984]
[1720429315915,41.49526652,141.21,141.06,6.2801]
[1720429316201,78.18284255,141.16,141.06,6.2801]
[1720429316508,135.8148473,141.15,141.06,6.2801]
[1720429316805,42.22,141.12,141.06,6.2801]
[1720429317018,42.22,141.12,140.89,42.22]
[1720429317019,55.5879001,141.11,141.02,6.1283]
[1720429317317,42.22,141.08,141.02,6.1283]
[1720429317623,65.17,141.07,140.99,16.3294]
[1720429317901,65.17,141.07,140.84,42.22]
[1720429317902,142.22,141.04,140.85,15.4029]
[1720429318080,65.17,141.03,140.85,15.4029]
[1720429318280,4.89935948,141.11,140.9,16.0849]
[1720429318481,100.0,141.18,140.94,16.0849]
[1720429318695,105.03494606,141.18,140.94,16.0849]
[1720429318896,35.64650245,141.17,140.94,16.0849]
[1720429319105,135.31170149,141.18,140.94,16.0849]
[1720429319313,78.0348473,141.15,140.94,16.0849]
[1720429319711,42.22,141.15,140.94,16.0849]
[1720429320085,100.0,141.18,140.97,16.6427]
[1720429320320,4.90330382,141.19,140.98,16.8127]
[1720429320483,78.66768367,141.21,140.99,6.2216]
[1720429320684,100.0,141.15,140.99,6.2216]
[1720429320910,77.86650245,141.17,140.99,6.2216]
[1720429321413,100.0,141.12,140.99,6.2216]
[1720429321618,100.0,141.15,140.99,6.2216]
[1720429321938,42.22,141.19,141.0,15.3258]
[1720429322085,100.0,141.12,141.0,15.3258]
[1720429322287,100.0,141.1,141.0,15.3258]
[1720429322599,42.22,141.14,141.0,15.3258]
[1720429322600,100.0,141.11,141.0,15.3258]
[1720429323011,142.22,141.1,141.0,15.3258]
[1720429323300,20.0,141.09,141.0,15.3258]
[1720429323511,20.0,141.12,141.0,15.3258]
[1720429325487,142.22,141.13,141.0,15.3258]
[1720429325809,100.0,141.16,141.0,15.3258]
[1720429326019,0.8567655,141.21,141.02,21.768]
[1720429326188,100.0,141.2,141.04,21.768]
[1720429326388,100.0,141.18,141.04,21.768]
[1720429326607,0.8567655,141.21,141.04,21.768]
[1720429326608,35.95308723,141.19,141.04,21.768]
[1720429326924,42.22,141.12,141.04,21.768]
[1720429327214,120.0,141.11,141.04,21.768]
[1720429327517,100.0,141.08,140.82,21.768]
[1720429327704,20.17,141.07,140.88,6.2854]
[1720429328013,45.0,141.06,140.92,6.2854]
[1720429328233,20.17,141.05,140.92,6.2854]
[1720429328909,20.17,141.05,140.94,6.218]
[1720429329112,0.17,141.05,140.94,6.218]
[1720429329350,20.0,141.04,140.94,6.218]
[1720429329630,0.17,141.03,140.94,6.218]
[1720429329836,20.0,141.07,140.94,6.218]
[1720429330141,100.0,141.15,140.95,15.2962]
[1720429330313,100.0,141.18,140.97,15.2962]
[1720429330520,100.8567655,141.21,141.01,15.2962]
[1720429330715,100.8567655,141.21,141.04,21.3523]
[1720429330934,0.8567655,141.21,140.99,42.22]
[1720429331234,0.8567655,141.21,141.04,15.753]
[1720429331543,0.8567655,141.21,141.06,16.5747]
[1720429331913,0.8567655,141.21,141.07,6.6605]
[1720429332424,0.8567655,141.21,141.08,16.5747]
[1720429332629,0.8567655,141.21,141.09,23.2352]
[1720429332937,105.0,141.25,141.0,21.54]
[1720429332938,5.0,141.25,141.11,6.0849]
[1720429333950,5.0,141.25,141.12,15.4412]
[1720429334114,5.0,141.25,141.13,6.1153]
[1720429334320,5.0,141.25,141.15,6.1153]
[1720429335016,0.8567655,141.35,141.22,64.2528]
[1720429335245,0.8567655,141.35,141.22,22.0328]
[1720429335817,0.8567655,141.35,141.22,57.6874]
[1720429336141,0.8567655,141.35,141.23,6.5247]
[1720429336845,48.03232421,141.49,141.25,48.6709]
[1720429337048,48.03232421,141.49,141.25,6.4509]
[1720429337345,100.0,141.47,141.25,6.4509]
[1720429337937,100.0,141.43,141.25,6.4509]
[1720429338131,100.0,141.4,141.25,6.4509]
[1720429338334,77.62736598,141.47,141.25,6.4509]
[1720429338335,100.0,141.36,141.25,6.4509]
[1720429338646,100.0,141.33,141.19,6.4509]
[1720429338849,42.22,141.39,141.19,6.4509]
[1720429339017,7.56872803,141.41,141.19,6.4509]
[1720429339018,42.22,141.34,141.19,6.4509]
[1720429339223,100.0,141.32,141.19,6.4509]
[1720429339452,20.17,141.31,141.19,6.4509]
[1720429340024,0.17,141.31,141.19,6.4509]
[1720429340223,45.0,141.3,141.19,6.4509]
[1720429340454,20.0,141.33,141.19,6.4509]
[1720429340741,100.0,141.35,141.19,6.4509]
[1720429341055,42.22,141.34,141.19,6.4509]
[1720429341638,100.0,141.33,141.19,6.4509]
[1720429341840,142.22,141.34,141.19,6.4509]
[1720429342060,145.17,141.33,141.19,6.4509]
[1720429342246,100.0,141.35,141.19,6.4509]
[1720429342444,4.84174157,141.39,141.19,6.4509]
[1720429342753,100.0,141.37,141.19,6.4509]
[1720429342923,142.22,141.37,141.19,6.4509]
[1720429343952,42.22,141.37,141.19,6.4509]
[1720429344120,100.0,141.43,141.2,20.0]
[1720429344325,42.22,141.42,141.2,20.0]
[1720429344828,100.0,141.39,141.19,6.4509]
[1720429345028,142.22,141.42,141.19,6.4509]
[1720429345232,100.0,141.39,141.19,6.4509]
[1720429345648,4.91034378,141.43,141.22,6.3238]
[1720429345834,100.0,141.45,141.24,16.0306]
[1720429346038,5.11125556,141.47,141.25,6.0869]
[1720429346356,100.0,141.47,141.25,48.3069]
[1720429346527,100.0,141.47,141.26,20.17]
[1720429346847,100.0,141.47,141.26,20.0]
[1720429347343,0.8567655,141.49,141.28,22.2071]
[1720429347344,100.8567655,141.49,141.28,22.2071]
[1720429347540,0.8567655,141.49,141.29,42.22]
[1720429347950,0.8567655,141.49,141.28,22.2071]
[1720429348128,100.8567655,141.49,141.28,22.2071]
[1720429348331,0.8567655,141.49,141.29,42.22]
[1720429348534,142.22,141.46,141.28,22.2071]
[1720429348727,0.8567655,141.49,141.28,22.2071]
[1720429348728,42.22,141.41,141.28,22.2071]
[1720429348929,100.0,141.39,141.28,22.2071]
[1720429349160,52.07650663,141.46,141.28,22.2071]
[1720429349652,100.0,141.43,141.28,22.2071]
[1720429349856,20.17,141.42,141.28,22.2071]
[1720429350056,0.17,141.42,141.28,22.2071]
[1720429350235,42.22,141.46,141.28,22.2071]
[1720429350433,100.8567655,141.49,141.28,22.2071]
[1720429351468,0.8567655,141.49,141.28,22.2071]
[1720429351754,0.8567655,141.49,141.35,6.1697]
[1720429353763,0.8567655,141.49,141.36,15.8852]
[1720429355246,100.8567655,141.49,141.36,15.8852]
[1720429355435,20.0,141.48,141.36,15.8852]
[1720429355636,20.8567655,141.49,141.36,15.8852]
[1720429355833,0.8567655,141.49,141.36,15.8852]
[1720429356152,5.09705664,141.56,141.37,6.2818]
[1720429356355,0.8567655,141.63,141.39,21.6792]
[1720429356660,0.8567655,141.63,141.42,42.22]
[1720429356661,100.0,141.6,141.42,42.22]
[1720429356972,100.0,141.54,141.39,21.6792]
[1720429357374,42.22,141.56,141.39,21.6792]
[1720429357672,100.19113904,141.59,141.39,21.6792]
[1720429357833,100.19113904,141.59,141.34,42.22]
[1720429357834,8.21246823,141.63,141.4,22.5963]
[1720429358035,100.04197038,141.74,141.5,6.5307]
[1720429358240,100.0,141.71,141.5,6.5307]
[1720429358454,42.22,141.68,141.5,6.5307]
[1720429358767,142.22,141.68,141.5,6.5307]
[1720429359187,0.04197038,141.74,141.52,6.5307]
[1720429359493,0.04197038,141.74,141.54,15.1977]
[1720429360043,0.14456288,141.74,141.54,15.1977]
[1720429360241,0.14456288,141.74,141.55,6.1066]
[1720429360553,0.9739495,141.82,141.6,42.22]
[1720429360754,100.9739495,141.82,141.6,42.22]
[1720429360971,100.9739495,141.82,141.59,21.3043]
[1720429361153,100.0,141.77,141.59,21.3043]
[1720429361483,100.0,141.81,141.59,21.3043]
[1720429362008,100.0,141.79,141.59,21.3043]
[1720429362577,42.22,141.76,141.59,21.3043]
[1720429362946,11.05207947,141.85,141.63,21.6376]
[1720429362947,4.93107947,141.85,141.63,21.6376]
[1720429363146,35.8954171,142.03,141.69,6.304]
[1720429363147,100.0,141.87,141.69,6.304]
[1720429363650,100.0,141.92,141.73,6.304]
[1720429363875,100.0,141.92,141.75,42.22]
[1720429364173,100.0,141.94,141.75,42.22]
[1720429364378,57.22,142.03,141.75,42.22]
[1720429364379,100.0,141.97,141.75,42.22]
[1720429364594,100.0,141.99,141.77,6.0409]
[1720429364949,100.0,141.99,141.78,15.3456]
[1720429365175,100.0,142.03,141.79,6.4183]
[1720429365350,100.0,142.04,141.79,26.4183]
[1720429365679,255.0,142.0,141.81,42.22]
[1720429366105,100.0,141.95,141.79,6.4183]
[1720429366688,155.0,142.0,141.79,48.6383]
[1720429366899,42.22,141.95,141.79,6.4183]
[1720429367671,100.0,141.9,141.79,6.4183]
[1720429367977,62.22,141.89,141.72,6.4259]
[1720429368270,100.0,141.83,141.72,6.4259]
[1720429368470,100.0,141.78,141.64,6.4259]
[1720429368770,20.17,141.77,141.64,6.4259]
[1720429368994,20.0,141.77,141.64,6.4259]
[1720429369189,0.17,141.76,141.64,6.4259]
[1720429369520,42.22,141.82,141.64,6.4259]
[1720429369521,20.0,141.79,141.64,6.4259]
[1720429369804,20.0,141.87,141.64,6.4259]
[1720429370004,35.10574664,141.94,141.67,42.22]
[1720429370005,100.0,141.94,141.67,42.22]
[1720429370298,42.22,141.92,141.67,42.22]
[1720429370467,100.0,141.94,141.71,42.22]
[1720429370670,42.22,141.96,141.72,22.875]
[1720429370879,100.0,141.93,141.72,22.875]
[1720429371098,42.22,141.88,141.72,22.875]
[1720429371588,36.60532468,141.98,141.72,22.875]
[1720429371589,0.9739495,141.98,141.75,42.22]
[1720429371793,0.9739495,141.98,141.76,20.0]
[1720429372175,0.9739495,141.98,141.75,42.22]
[1720429372370,43.1939495,141.98,141.74,0.17]
[1720429372574,143.1939495,141.98,141.74,20.17]
[1720429372793,143.1939495,141.98,141.73,8.1657548]
[1720429372794,100.0,141.96,141.73,8.1657548]
[1720429372996,42.22,141.94,141.73,8.1657548]
[1720429373189,100.0,141.93,141.73,8.1657548]
[1720429373595,45.0,141.92,141.73,6.5336]
[1720429373798,42.22,141.9,141.73,6.5336]
[1720429374105,65.17,141.89,141.73,6.5336]
[1720429374408,20.0,141.89,141.73,6.5336]
[1720429374605,42.22,141.95,141.73,6.5336]
[1720429374778,42.22,142.03,141.8,16.026]
[1720429375503,42.22,142.03,141.81,20.17]
[1720429375804,50.25357286,142.13,141.83,36.7273]
[1720429375805,100.0,142.13,141.83,36.7273]
[1720429375977,100.9739495,142.14,141.9,41.79]
[1720429376182,100.0,142.1,141.91,20.0]
[1720429376805,85.0004,142.0,141.93,3.5042]
[1720429376990,85.0004,142.0,141.92,0.17]
[1720429376991,81.4962,142.0,141.98,41.79]
[1720429377177,81.4962,142.0,141.94,41.96]
[1720429377379,81.4962,142.0,141.91,20.0]
[1720429377803,81.4962,142.0,141.89,41.79]
[1720429377804,81.4962,142.0,141.82,83.58]
[1720429378103,81.4962,142.0,141.82,41.79]
[1720429378420,80.57505935,142.0,141.95,41.79]
[1720429378594,0.9739495,142.14,141.99,41.79]
[1720429379394,0.9739495,142.14,142.03,41.79]
[1720429379625,0.9739495,142.14,142.04,20.17]
[1720429379910,0.04184281,142.18,142.04,20.17]
[1720429379911,0.04184281,142.18,142.12,41.79]
[1720429380074,0.04184281,142.18,142.04,45.74507248]
[1720429380075,0.04184281,142.18,142.13,0.17]
[1720429380280,0.04184281,142.18,142.06,20.0]
[1720429380707,0.04184281,142.18,142.07,41.96]
[1720429380890,0.04184281,142.18,142.08,20.0]
[1720429381210,0.04184281,142.18,142.09,0.17]
[1720429381600,0.04184281,142.18,142.08,20.0]
[1720429381907,0.04184281,142.18,142.09,41.79]
[1720429382309,0.04184281,142.18,142.04,41.79]
[1720429382512,0.04184281,142.18,142.05,20.0]
[1720429382684,0.04184281,142.18,142.03,41.79]
[1720429383405,0.04184281,142.18,141.91,4.86290568]
[1720429383406,100.0,142.17,141.92,15.0]
[1720429383608,100.0,142.17,141.95,41.79]
[1720429383790,0.04184281,142.18,141.88,9.98754398]
[1720429383791,100.0,142.14,141.88,9.98754398]
[1720429384114,20.0,142.16,141.94,41.79]
[1720429384291,20.0,142.16,141.98,41.79]
[1720429384802,0.17,142.15,141.98,41.79]
[1720429385022,41.79,142.15,141.94,28.232233]
[1720429385204,65.17,142.14,141.94,28.232233]
[1720429385510,100.0,142.12,141.89,41.79]
[1720429385840,20.17,142.11,141.89,41.79]
[1720429386185,16.5458,142.17,141.89,41.79]
[1720429386186,100.0,142.16,141.89,41.79]
[1720429386386,86.96,142.15,141.89,41.79]
[1720429386701,16.5458,142.17,141.89,41.79]
[1720429386911,41.79,142.14,141.83,9.98754398]
[1720429387214,116.5458,142.17,141.91,41.79]
[1720429387430,41.79,142.15,141.91,41.79]
[1720429387589,20.0,142.14,141.91,41.79]
[1720429387997,45.0,142.13,141.91,41.79]
[1720429388205,41.79,142.11,141.86,41.79]
[1720429388409,20.0,142.12,141.86,70.037589]
[1720429388601,16.5458,142.17,141.94,41.79]
[1720429389024,116.5458,142.17,141.94,41.79]
[1720429389309,16.5458,142.17,141.94,41.79]
[1720429389526,16.5458,142.17,141.98,41.79]
[1720429389722,16.5458,142.17,141.99,20.0]
[1720429390021,100.0,142.16,141.99,20.0]
[1720429390189,141.79,142.16,141.94,41.79]
[1720429390397,141.79,142.16,141.89,51.77754398]
[1720429390398,141.79,142.16,141.89,41.79]
[1720429390709,20.0,142.15,141.86,28.247589]
[1720429390913,41.79,142.12,141.88,41.79]
[1720429391116,41.79,142.12,141.84,1.63088903]
[1720429391117,100.0,142.07,141.84,1.63088903]
[1720429391315,71.2705,142.11,141.84,1.63088903]
[1720429391316,100.0,141.99,141.84,1.63088903]
[1720429391625,51.3461,141.98,141.74,41.79]
[1720429391791,26.5161,141.98,141.78,41.79]
[1720429392515,6.3461,141.98,141.82,56.79]
[1720429392721,15.5265,142.06,141.86,41.79]
[1720429393085,15.5265,142.06,141.82,41.79]
[1720429393287,41.79,142.02,141.79,28.258627]
[1720429393507,41.79,142.02,141.79,41.79]
[1720429393997,41.79,142.02,141.75,71.68055152]
[1720429394316,20.0,142.01,141.83,41.79]
[1720429394504,57.3165,142.06,141.83,41.79]
[1720429394710,57.3165,142.06,141.84,1.63088903]
[1720429394890,41.79,142.02,141.84,1.63088903]
[1720429395524,41.79,141.97,141.84,1.63088903]
[1720429395703,41.79,141.97,141.68,41.79]
[1720429395704,6.2905,141.96,141.68,41.79]
[1720429395910,6.2905,141.96,141.61,41.79]
[1720429395911,16.2442,141.92,141.67,28.282108]
[1720429396116,41.79,141.89,141.67,28.282108]
[1720429396441,41.79,141.89,141.56,15.0]
[1720429396442,41.79,141.8,141.51,1.23094827]
[1720429396613,41.79,141.8,141.56,41.79]
[1720429396941,6.2905,141.84,141.47,141.79]
[1720429396942,16.2442,141.78,141.49,15.0]
[1720429397116,41.79,141.76,141.5,1.63480778]
[1720429397429,65.17,141.79,141.4,41.79]
[1720429397430,41.79,141.63,141.4,41.79]
[1720429397639,41.79,141.63,141.37,41.79]
[1720429397811,20.0,141.62,141.41,41.79]
[1720429398015,22.8763,141.66,141.4,41.79]
[1720429398016,22.8763,141.66,141.45,41.79]
[1720429398309,20.0,141.65,141.45,41.79]
[1720429398510,0.17,141.75,141.49,56.79]
[1720429398710,6.5624,141.76,141.55,41.79]
[1720429398924,6.5624,141.76,141.59,41.79]
[1720429399125,6.5624,141.76,141.54,41.79]
[1720429399126,6.5624,141.76,141.63,41.79]
[1720429399325,6.5624,141.76,141.53,41.79]
[1720429399839,6.5624,141.76,141.56,28.298728]
[1720429400040,16.527,141.77,141.61,41.79]
[1720429400630,6.5624,141.83,141.64,15.0]
[1720429400835,6.5624,141.83,141.68,15.0]
[1720429401005,6.5624,141.83,141.69,20.17]
[1720429401208,6.5624,141.83,141.66,20.0]
[1720429401416,41.79,141.79,141.49,100.0]